fUSD/lending_fUSD_20240114
["ID","MTS","AMOUNT","RATE_DAILY","PERIOD"]
[311629575,1705271432474,-818.10924833,0.00022799,2]
[311629577,1705271432486,-2174.91534356,0.00022799,2]
[311629579,1705271432496,-6656.3882,0.00022799,2]
[311629581,1705271432508,-200.0,0.00022803,2]
[311629583,1705271432518,-800.0,0.00022803,2]
[311629586,1705271432528,-718.12,0.0002285,2]
[311629588,1705271432538,-75.57645644,0.00022864,2]
[311629591,1705271432588,-646.80354356,0.00022864,2]
[311629592,1705271432599,-154.68,0.00022873,2]
[311629593,1705271432610,-734.6,0.00022883,2]
[311629594,1705271432620,-408.08870531,0.00022897,2]
[311629595,1705271432630,-191.38960469,0.00022897,2]
[311629596,1705271432640,-4777.00888869,0.00022897,2]
[311629597,1705271432650,-365.44547343,0.00022897,2]
[311629598,1705271432660,-5552.08378432,0.00022899,2]
[311629599,1705271432680,-481.792402,0.00022899,2]
[311629600,1705271432693,-363.0257753,0.00022899,2]
[311629601,1705271432707,-341.07998745,0.00022899,2]
[311629602,1705271432719,-975.65000004,0.00022899,2]
[311629603,1705271432827,-410.0968622,0.00022899,2]
[311629604,1705271432840,-8605.69988438,0.00022899,2]
[311629605,1705271432853,-1216.44,0.00022899,2]
[311629606,1705271432865,-576.23513454,0.00022899,2]
[311629607,1705271432877,-1716.91233691,0.00022899,2]
[311629608,1705271432926,-1219.77729782,0.00022899,2]
[311629609,1705271432938,-1498.95358187,0.00022899,2]
[311629610,1705271432950,-2931.51785668,0.00022899,2]
[311629611,1705271432965,-639.91916815,0.00022899,2]
[311629612,1705271432977,-1075.8,0.00022899,2]
[311629613,1705271433015,-2177.18012834,0.00022899,2]
[311629614,1705271433026,-1597.0217,0.00022899,2]
[311629615,1705271433036,-712.71,0.00022899,2]
[311629616,1705271433046,-716.8,0.00022899,2]
[311629617,1705271433059,-1905.83182075,0.000229,2]
[311629618,1705271433072,-2139.25,0.000229,2]
[311629619,1705271433084,-524.96989304,0.000229,2]
[311629620,1705271433096,-429.94828621,0.000229,2]
[311629621,1705271433106,-69.21705636,0.000229,2]
[311629622,1705271433119,-111.31160157,0.000229,2]
[311629623,1705271433129,-489.33844987,0.000229,2]
[311629624,1705271433141,-1864.54905793,0.000229,2]
[311629625,1705271433181,-6004.13120219,0.000229,2]
[311629626,1705271433193,-538.88,0.000229,2]
[311629627,1705271433206,-1174.37054762,0.000229,2]
[311629643,1705271437982,-1008.0,0.000229,2]
[311629644,1705271438003,-6259.87372901,0.000229,2]
[311629645,1705271438012,-172.04816617,0.000229,2]
[311629646,1705271438021,-302.15079304,0.000229,6]
[311629647,1705271438031,-572.70575894,0.000229,2]
[311629648,1705271438040,-724.01,0.00022905,2]
[311629649,1705271438051,-717.51,0.00022909,2]
[311629650,1705271438060,-710.94,0.00022918,2]
[311629651,1705271438069,-702.88496214,0.00022997,3]
[311629652,1705271438078,-3141.15835728,0.00022997,2]
[311629653,1705271438088,-309.58159212,0.00022997,2]
[311629654,1705271438098,-337.50241988,0.00022998,2]
[311629655,1705271438107,-1322.32930974,0.00022998,2]
[311629656,1705271438117,-155.46774164,0.00022998,2]
[311629657,1705271438127,-1251.07824804,0.00022998,2]
[311629658,1705271438136,-211.4343928,0.00022998,2]
[311629659,1705271438146,-642.64330023,0.00022998,2]
[311629660,1705271438155,-954.63433389,0.00022998,2]
[311629661,1705271438164,-2136.98369019,0.00022998,2]
[311629662,1705271438175,-1762.36251206,0.00022998,2]
[311629663,1705271438184,-249.78301788,0.00022998,2]
[311629664,1705271438193,-160.46586719,0.00022998,2]
[311629665,1705271438202,-369.25528004,0.00022998,2]
[311629666,1705271438211,-1758.78667174,0.00022998,2]
[311629667,1705271438221,-732.72,0.00022999,2]
[311629668,1705271438230,-3325.25210067,0.00022999,2]
[311629669,1705271438239,-150.01,0.00022999,2]
[311629670,1705271438248,-2073.73407814,0.00022999,2]
[311629671,1705271438258,-11811.69367718,0.00022999,2]
[311629672,1705271438269,-50020.0,0.00022999,2]
[311629673,1705271438281,-365.99022689,0.00022999,2]
[311629675,1705271438292,-10612.79276887,0.00022999,2]
[311629676,1705271438301,-690.0,0.00022999,2]
[311629677,1705271438311,-772758.1210809,0.00022999,2]
[311629678,1705271438320,-1064303.05910745,0.00023,2]
[311629679,1705271438347,-22745.0,0.00023,2]
[311629680,1705271438362,-840.60439588,0.00023,2]
[311629681,1705271438373,-278.97770089,0.00023,2]
[311629683,1705271438384,-2596.94445518,0.00023,2]
[311629684,1705271438524,-0.00211336,0.00023,2]
[311629685,1705271438537,-1058.031975,0.00023,2]
[311629686,1705271438566,-1797.91698902,0.00023,2]
[311629687,1705271438618,-2260.42408196,0.00023,2]
[311629688,1705271438629,-434.32233559,0.00023,2]
[311629689,1705271438641,-429.31951776,0.00023,2]
[311629690,1705271438653,-730.45787478,0.00023,2]
[311629691,1705271438665,-2557.09983,0.00023,2]
[311629692,1705271438679,-7284.24449035,0.00023,2]
[311629693,1705271438694,-1027.1718567,0.00023,2]
[311629694,1705271438804,-1251.75,0.00023,2]
[311629695,1705271438817,-440.38923513,0.00023,2]
[311629697,1705271440388,-5000.0,0.000229,2]
[311629698,1705271440397,-57539.64618183,0.00023,2]
[311629699,1705271440409,-1781.00147102,0.00023,2]
[311629700,1705271440422,-935.11173024,0.00023,2]
[311629701,1705271440439,-2161.75108759,0.00023,2]
[311629702,1705271440522,-2750.33038402,0.00023,2]
[311629703,1705271440533,-460.08111465,0.00023,2]
[311629704,1705271440564,-1075.97623632,0.00023,2]
[311629705,1705271440576,-463.38494082,0.00023,2]
[311629706,1705271440587,-684.89104101,0.00023,2]
[311629707,1705271440597,-8774.2658,0.00023,2]
[311629708,1705271440609,-3599.73695265,0.00023,2]
[311629709,1705271440722,-504.29789126,0.00023,2]
[311629710,1705271440733,-21301.25135998,0.00023,2]
[311629711,1705271440745,-527.82393139,0.00023,2]
[311629712,1705271440768,-43459.061525,0.00023,2]
[311629713,1705271441182,-825.51222204,0.00023,2]
[311629714,1705271441193,-1290.21,0.00023,2]
[311629715,1705271441206,-1009.94099212,0.00023,2]
[311629717,1705271441252,-5437.69,0.00023,2]
[311629719,1705271441263,-86000.0,0.00023,2]
[311629901,1705271442896,-2091.95178938,0.00023,2]
[311629904,1705271442907,-624.82988308,0.00023,2]
[311629908,1705271442918,-2160.0,0.00023,2]
[311629914,1705271442936,-4387.93649942,0.00023,2]
[311629919,1705271442949,-562.92330503,0.00023,2]
[311629923,1705271442962,-853.2524,0.00023,2]
[311629929,1705271442986,-587.29032948,0.00023,2]
[311629932,1705271442997,-7177.07257617,0.00023,2]
[311629936,1705271443008,-6877.09886753,0.00023,2]
[311629939,1705271443020,-1531.95071034,0.00023,2]
[311629942,1705271443031,-4081.96727971,0.00023,2]
[311629945,1705271443043,-394.2603665,0.00023,2]
[311629947,1705271443055,-7521.29999952,0.00023,2]
[311629950,1705271443070,-508.51479576,0.00023,2]
[311629953,1705271443086,-713.76438614,0.00023,2]
[311629955,1705271443096,-260.2328434,0.00023,2]
[311629957,1705271443108,-660.19,0.00023,2]
[311629962,1705271443139,-184400.97758066,0.00023,2]
[311629964,1705271443148,-735.2,0.00023,2]
[311629966,1705271443158,-99929.37483141,0.00023,2]
[311629968,1705271443169,-1154.74082348,0.00023,2]
[311629970,1705271443182,-1522.449999,0.00023,2]
[311629974,1705271443212,-10714.0644,0.00023,2]
[311629976,1705271443222,-701.666667,0.00023,2]
[311629979,1705271443233,-629.94670745,0.00023,2]
[311630054,1705271445945,-719.13,0.000229,2]
[311630055,1705271445956,-300.02,0.00022999,2]
[311630056,1705271445968,-1555.30055861,0.00022999,2]
[311630057,1705271445977,-875.90532379,0.00023,2]
[311630058,1705271445991,-8749.99,0.00023,2]
[311630059,1705271446003,-430.0,0.00023,2]
[311630060,1705271446032,-2118.62672388,0.00023,2]
[311630061,1705271446045,-3768.27266882,0.00023,2]
[311630064,1705271447179,-595.87512352,0.00022999,2]
[311630066,1705271447198,-812.47332721,0.00022999,2]
[311630067,1705271447218,-854.0,0.00022999,2]
[311630068,1705271447246,-4980.52511853,0.00022999,2]
[311630069,1705271447258,-308.54922377,0.00022999,2]
[311630070,1705271447286,-459.3406998,0.00022999,2]
[311630071,1705271447298,-3963.90823305,0.00022999,2]
[311630072,1705271447307,-13065.29176695,0.00023,2]
[311630073,1705271447318,-1246.49999999,0.00023,2]
[311630074,1705271447345,-63550.00000001,0.00023,2]
[311630085,1705271583461,648.74,0.00020154,2]
[311630086,1705271673636,205.0,0.00021701,2]
[311630087,1705271719958,1401.4,0.00021918,2]
[311630088,1705271749172,153.36,0.00021842,2]
[311630089,1705271807604,157.55,0.00021979,2]
[311630090,1705271857490,834.95,0.00021776,2]
[311630091,1705271929088,603.28,0.0002174,2]
[311630092,1705272037015,616.3,0.00019842,2]
[311630093,1705272127383,154.33,0.00021973,2]
[311630094,1705272216961,174.77,0.00021742,2]
[311630095,1705272247650,157.55,0.00021894,2]
[311630096,1705272364205,205.0,0.00021954,2]
[311630097,1705272384229,779.28,0.00021586,2]
[311630098,1705272393605,517.37,0.00021569,2]
[311630100,1705272454096,-487.53390948,0.00022105,2]
[311630101,1705272454116,-3326.78039808,0.00022105,2]
[311630102,1705272454138,-616.3,0.00022106,2]
[311630103,1705272454160,-156.22454558,0.00022241,2]
[311630104,1705272454181,-174.77,0.00022286,2]
[311630105,1705272454203,-150.0,0.00022301,2]
[311630106,1705272454224,-714.71,0.0002234,2]
[311630107,1705272454247,-731.72,0.0002234,2]
[311630108,1705272454268,-48.52123545,0.00022341,2]
[311630111,1705272531915,554.67,0.0001982,2]
[311630112,1705272532141,554.67,0.00022084,2]
[311630117,1705272606409,153.49,0.00021947,2]
[311630140,1705272632108,-105.94876455,0.00022341,2]
[311630144,1705272632118,-726.88,0.00022341,2]
[311630147,1705272632126,-151.42794994,0.00022341,2]
[311630151,1705272632138,-579.05205006,0.00022341,2]
[311630153,1705272632147,-724.84,0.00022343,2]
[311630156,1705272632156,-725.07,0.00022345,2]
[311630158,1705272632165,-1741.47,0.0002235,2]
[311630160,1705272632174,-725.55,0.0002235,2]
[311630163,1705272632183,-729.18,0.00022359,2]
[311630165,1705272632192,-715.1,0.00022363,2]
[311630168,1705272632201,-150.0,0.00022367,2]
[311630171,1705272632210,-712.65,0.00022368,2]
[311630173,1705272632220,-723.53,0.00022374,2]
[311630174,1705272632229,-733.65,0.00022403,2]
[311630175,1705272632239,-54.81214437,0.00022465,2]
[311630176,1705272632250,-102.73785563,0.00022465,2]
[311630177,1705272632259,-779.28,0.00022565,2]
[311630178,1705272632269,-202.9641373,0.00022601,2]
[311630179,1705272632278,-250.102693,0.00022601,2]
[311630180,1705272632287,-419.35367483,0.00022602,2]
[311630181,1705272632308,-295.02632517,0.00022602,2]
[311630182,1705272632317,-724.89,0.00022603,2]
[311630183,1705272632327,-716.86,0.00022604,2]
[311630184,1705272632336,-2500.0,0.00022715,2]
[311630185,1705272632345,-154.33,0.00022799,2]
[311630186,1705272632354,-200.0,0.00022809,2]
[311630187,1705272632364,-202.028196,0.00022809,2]
[311630188,1705272632373,-487.0233009,0.00022813,2]
[311630189,1705272632382,-3455.47391871,0.00022814,2]
[311630190,1705272632391,-33824.61825922,0.00022815,2]
[311630191,1705272632403,-2107.65555,0.00022815,2]
[311630192,1705272632414,-1046.5,0.00022815,2]
[311630193,1705272632426,-317.57392288,0.00022815,2]
[311630194,1705272632437,-501.10653636,0.00022815,2]
[311630195,1705272632464,-390.72,0.00022815,2]
[311630197,1705272632475,-540.6156531,0.00022815,2]
[311630199,1705272632487,-1124.72457423,0.00022815,2]
[311630201,1705272632502,-10083.9123897,0.00022815,2]
[311630203,1705272632513,-410.62500001,0.00022815,2]
[311630206,1705272632524,-3661.03122525,0.00022815,2]
[311630210,1705272632589,-842.99500624,0.00022815,2]
[311630211,1705272632626,-4229.2939203,0.00022815,2]
[311630212,1705272632703,-60069.7542725,0.00022815,2]
[311630231,1705272638137,-1254.79354,0.00022815,2]
[311630232,1705272638149,-466.34470698,0.00022815,2]
[311630233,1705272638236,-633.89410348,0.00022815,2]
[311630234,1705272638251,-1690.49330512,0.00022815,2]
[311630235,1705272638263,-8333.13137547,0.00022815,2]
[311630236,1705272638360,-292.0921017,0.00022815,2]
[311630237,1705272638372,-2098.79773429,0.00022815,2]
[311630238,1705272638384,-42018.99999999,0.00022815,2]
[311630239,1705272638400,-370.80806289,0.00022815,2]
[311630240,1705272638412,-7976.59337912,0.00022815,2]
[311630241,1705272638432,-42378.99999999,0.00022815,2]
[311630242,1705272638474,-2095.768675,0.00022815,2]
[311630243,1705272638485,-348.29214401,0.00022815,2]
[311630244,1705272638509,-4200.0,0.00022815,2]
[311630462,1705272640594,-2770.83552027,0.00022815,2]
[311630464,1705272640605,-281.58631847,0.00022815,2]
[311630466,1705272640616,-1626.96654683,0.00022815,2]
[311630468,1705272640628,-1272.2649,0.00022815,2]
[311630477,1705272640697,-892.77987388,0.00022815,2]
[311630479,1705272640708,-3746.08546721,0.00022815,2]
[311630482,1705272640720,-915.74877492,0.00022815,2]
[311630484,1705272640732,-1464.67381639,0.00022815,2]
[311630486,1705272640743,-640.64962494,0.00022815,2]
[311630489,1705272640765,-2560.89551778,0.00022815,2]
[311630495,1705272640806,-326.29823559,0.00022815,2]
[311630497,1705272640818,-318.7475,0.00022815,2]
[311630501,1705272640840,-1072.01781389,0.00022815,2]
[311630503,1705272640851,-1068.52842727,0.00022815,2]
[311630505,1705272640863,-9288.50858642,0.00022815,2]
[311630507,1705272640873,-156.0,0.00022815,2]
[311630509,1705272640883,-800.0,0.00022816,2]
[311630511,1705272640893,-174.77,0.00022829,2]
[311630513,1705272640902,-1228.676,0.00022864,2]
[311630516,1705272640912,-391.94838786,0.00022898,2]
[311630518,1705272640922,-400.0,0.000229,2]
[311630520,1705272640931,-295.08159452,0.000229,2]
[311630522,1705272640941,-153.36,0.00022934,2]
[311630524,1705272640950,-201.54,0.00022948,2]
[311630526,1705272640960,-2927.78107159,0.00022962,2]
[311630528,1705272640969,-616.1048005,0.00022962,2]
[311630530,1705272640981,-141.62286182,0.00022962,2]
[311630532,1705272640991,-859.08219844,0.00022963,2]
[311630535,1705272641003,-281.28456089,0.00022963,2]
[311630537,1705272641015,-121.41629302,0.00022963,2]
[311630539,1705272641024,-269.68524348,0.00022965,2]
[311630541,1705272641037,-417.65,0.00022965,2]
[311630544,1705272641049,-45.63475652,0.00022965,2]
[311630546,1705272641058,-257.8324854,0.0002299,2]
[311630548,1705272641070,-36.60988134,0.0002299,2]
[311630550,1705272641079,-904.07239856,0.00022998,2]
[311630552,1705272641091,-1578.53959199,0.00022998,2]
[311630554,1705272641101,-2136.98369019,0.00022998,2]
[311630557,1705272641111,-160.46586719,0.00022998,2]
[311630559,1705272641121,-5272.44162638,0.00022998,2]
[311630561,1705272641132,-155.40803054,0.00022998,2]
[311630563,1705272641146,-4990.80915422,0.00022998,2]
[311630566,1705272641156,-712.29,0.00022999,2]
[311630568,1705272641166,-3141.15835728,0.00022999,2]
[311630570,1705272641177,-2304.07734728,0.00022999,2]
[311630572,1705272641187,-1555.30055861,0.00022999,2]
[311630574,1705272641197,-2323.56947434,0.00023,2]
[311630577,1705272641214,-14695.69462396,0.00023,2]
[311630581,1705272641243,-2369.35845118,0.00023,2]
[311630583,1705272641255,-299.52503075,0.00023,2]
[311630613,1705272641528,-77565.26269234,0.00023,2]
[311630814,1705272643300,-4094.464261,0.00023,2]
[311630817,1705272643320,-2974.04155912,0.00023,2]
[311630819,1705272643331,-20088.03923116,0.00023,2]
[311630822,1705272643343,-2993.82720111,0.00023,2]
[311630824,1705272643354,-15910.00000316,0.00023,2]
[311630835,1705272643444,-50299.9999996,0.00023,2]
[311630868,1705272643749,-2197.62531791,0.00023,2]
[311631137,1705272646176,-910.07126,0.00022999,2]
[311631141,1705272646188,-126.79577907,0.00022999,2]
[311631144,1705272646197,-1759.9201024,0.00023,2]
[311631147,1705272646208,-4215.0,0.00023,2]
[311631151,1705272646221,-5793.26410653,0.00023,2]
[311631157,1705272646243,-4211.3,0.00023,2]
[311631160,1705272646255,-366.49928082,0.00023,2]
[311631163,1705272646266,-4222.2276,0.00023,2]
[311631168,1705272646277,-1999.9804294,0.00023,2]
[311631171,1705272646288,-3957.16671768,0.00023,2]
[311631174,1705272646303,-775.80915422,0.00023,2]
[311631188,1705272646361,-4232.55,0.00023,2]
[311631191,1705272646372,-12100.0,0.00023,2]
[311631195,1705272646384,-387.27535932,0.00023,2]
[311631202,1705272646418,-506.70909012,0.00023,2]
[311631204,1705272646430,-585.49045393,0.00023,2]
[311631229,1705272646653,-808.35570292,0.00023,2]
[311631231,1705272646665,-61646.59281803,0.00023,2]
[311632529,1705272663807,205.0,0.00021954,2]
[311632530,1705272686824,2791.5817053,0.0003,120]
[311632535,1705272852466,586.1,0.00022062,2]
[311632538,1705272869384,774.51,0.00022061,2]
[311632539,1705272886415,201.95,0.00022045,2]
[311632541,1705272961032,559.81,0.00020127,2]
[311632542,1705273004428,150.0,0.00022,2]
[311632543,1705273072603,150.0,0.00022,2]
[311632545,1705273131120,200.0,0.0002199,2]
[311632546,1705273165806,173.39,0.00022027,2]
[311632547,1705273286163,22475.88,0.00021982,2]
[311632548,1705273321157,168.68,0.00021982,2]
[311632549,1705273340221,531.12,0.00021982,2]
[311632550,1705273363453,747.29,0.00021981,2]
[311632551,1705273417396,549.77,0.00020048,2]
[311632552,1705273444272,205.0,0.00021332,2]
[311632553,1705273486735,160.13,0.00021941,2]
[311632554,1705273539404,190.31,0.00021911,2]
[311632555,1705273570341,250.0,0.00021887,2]
[311632556,1705273575435,155.0,0.0002,2]
[311632557,1705273593743,207.0,0.00021332,2]
[311632558,1705273625104,-159.16,0.00022121,2]
[311632559,1705273625127,-160.13,0.0002214,2]
[311632560,1705273625149,-763.2792291,0.00022191,2]
[311632561,1705273625170,-43.41273272,0.00022191,2]
[311632568,1705273791615,154.13,0.00022041,2]
[311632569,1705273794206,684.49,0.00021888,2]
[311632573,1705273832284,-610.44814184,0.0002219,2]
[311632574,1705273832297,-4520.10766225,0.0002219,2]
[311632576,1705273832307,-719.86649638,0.00022191,2]
[311632577,1705273832317,-156.88,0.00022279,2]
[311632578,1705273832327,-549.77,0.00022312,2]
[311632579,1705273832341,-160.13,0.00022339,2]
[311632580,1705273832350,-160.13,0.00022539,2]
[311632581,1705273832360,-162.84716052,0.000226,2]
[311632582,1705273832372,-318.4195,0.000226,2]
[311632583,1705273832387,-210.93185689,0.000226,2]
[311632584,1705273832396,-154.13,0.00022615,2]
[311632585,1705273832406,-36.31345862,0.00022714,2]
[311632586,1705273832427,-113.68654138,0.00022714,2]
[311632587,1705273832438,-7414.22814854,0.00022715,2]
[311632588,1705273832450,-3680.57005146,0.00022715,2]
[311632589,1705273832459,-738.06,0.00022715,2]
[311632590,1705273832469,-711.35,0.00022715,2]
[311632591,1705273832478,-718.39,0.00022715,2]
[311632592,1705273832490,-160.13,0.00022738,2]
[311632593,1705273832501,-85.71127654,0.00022815,2]
[311632594,1705273832524,-414.28872346,0.00022815,2]
[311632595,1705273832534,-200.0,0.00022815,2]
[311632596,1705273832544,-500.0,0.00022815,2]
[311632597,1705273832554,-500.0,0.00022815,2]
[311632598,1705273832564,-200.0,0.00022816,2]
[311632599,1705273832573,-98.43117065,0.00022816,2]
[311632600,1705273832602,-401.56882935,0.00022816,2]
[311632601,1705273832612,-500.0,0.00022816,2]
[311632602,1705273832622,-500.0,0.00022816,2]
[311632603,1705273832632,-500.0,0.00022816,2]
[311632604,1705273832642,-500.0,0.00022816,2]
[311632605,1705273832652,-500.0,0.00022816,2]
[311632606,1705273832662,-500.0,0.00022816,2]
[311632607,1705273832672,-204.350464,0.00022816,2]
[311632608,1705273832681,-200.0,0.00022816,2]
[311632609,1705273832691,-200.0,0.00022816,2]
[311632610,1705273832701,-800.0,0.00022816,2]
[311632611,1705273832711,-1000.0,0.00022822,2]
[311632612,1705273832721,-2500.0,0.00022879,2]
[311632613,1705273832730,-230.29533501,0.0002288,3]
[311632614,1705273832744,-927.97075498,0.0002288,2]
[311632615,1705273832755,-270.3091,0.00022897,2]
[311632616,1705273832765,-1372.0315,0.00022897,2]
[311632619,1705273832775,-169.0392,0.00022897,2]
[311632622,1705273832784,-192.60373435,0.00022897,2]
[311632625,1705273832794,-155.0,0.00022898,2]
[311632628,1705273832804,-803.9697,0.000229,2]
[311632631,1705273832814,-1499.249442,0.000229,2]
[311632634,1705273832824,-2550.06499361,0.000229,2]
[311632637,1705273832836,-614.479575,0.000229,2]
[311632640,1705273832848,-709.03894562,0.000229,2]
[311632645,1705273832860,-126.64238577,0.000229,2]
[311632647,1705273832870,-777.95651492,0.000229,2]
[311632649,1705273832886,-968.97329241,0.000229,2]
[311632651,1705273832898,-17271.31973925,0.000229,2]
[311632653,1705273832907,-300.98317008,0.000229,2]
[311632655,1705273832916,-1019.34729434,0.000229,2]
[311632657,1705273832926,-572.58407463,0.000229,2]
[311632659,1705273832935,-192.60373434,0.000229,2]
[311632661,1705273832946,-271.18577363,0.000229,2]
[311632662,1705273832955,-789.07320291,0.000229,2]
[311632663,1705273832965,-205.0,0.00022909,2]
[311632664,1705273832974,-160.13,0.00022938,2]
[311632665,1705273832984,-747.29,0.0002296,2]
[311632666,1705273832996,-487.27860519,0.00022979,2]
[311632667,1705273833006,-210331.03412155,0.00022979,2]
[311632668,1705273833017,-4269.08294647,0.00022979,2]
[311632671,1705273833037,-814.15802409,0.00022979,2]
[311632674,1705273833048,-96423.34543819,0.00022979,2]
[311632676,1705273833060,-96594.38824206,0.00022979,2]
[311632678,1705273833071,-1563.99319895,0.00022979,2]
[311632680,1705273833082,-547.4688403,0.00022979,2]
[311632682,1705273833098,-311.06238185,0.00022979,2]
[311632683,1705273833114,-1889.99004518,0.00022979,2]
[311632684,1705273833125,-911.11649018,0.00022979,2]
[311632685,1705273833137,-7367.36466573,0.00022979,2]
[311632686,1705273833154,-34.48751769,0.00022979,2]
[311632687,1705273833162,-6083.58101508,0.0002298,2]
[311632688,1705273833177,-553.23029445,0.0002298,2]
[311632694,1705273838994,-381.8038393,0.000229,2]
[311632695,1705273839003,-5329.19492073,0.0002298,2]
[311632696,1705273839014,-948.92245727,0.0002298,2]
[311632697,1705273839026,-992.26024932,0.0002298,2]
[311632698,1705273839038,-1990.94168001,0.0002298,2]
[311632699,1705273839051,-637.25697,0.0002298,2]
[311632700,1705273839067,-13046.65284415,0.0002298,2]
[311632701,1705273839079,-626.47915175,0.0002298,2]
[311632702,1705273839088,-163.12818694,0.00022995,2]
[311632703,1705273839098,-270.60037622,0.00022995,2]
[311632704,1705273839107,-2179.99139161,0.00022996,2]
[311632705,1705273839116,-8477.48442404,0.00022997,2]
[311632706,1705273839126,-114829.28874198,0.00022997,2]
[311632707,1705273839155,-475.25222268,0.00022997,2]
[311632708,1705273839333,-2705.67645439,0.00022997,2]
[311632709,1705273839359,-1581.061535,0.00022997,2]
[311632711,1705273839412,-7328.34397305,0.00022997,2]
[311632713,1705273839424,-9997.99988286,0.00022997,2]
[311633147,1705273843375,-166.0,0.00022997,2]
[311633150,1705273843386,-4203.5771668,0.00022997,2]
[311633155,1705273843398,-11736.00650017,0.00022997,2]
[311633158,1705273843410,-1285.62044497,0.00022997,2]
[311633165,1705273843447,-5970.53153546,0.00022997,2]
[311633173,1705273843519,-401.72230598,0.00022997,2]
[311633444,1705273846409,-25896.88859527,0.00022997,2]
[311633460,1705273846537,-852.00839208,0.00022997,2]
[311633469,1705273846617,-563.11285671,0.00022997,2]
[311633471,1705273846628,-522.18415358,0.00022997,2]
[311633473,1705273846638,-1743.9678759,0.00022998,2]
[311633475,1705273846648,-3325.25210067,0.00022998,2]
[311633477,1705273846659,-5272.44162638,0.00022998,2]
[311633479,1705273846669,-3141.15835728,0.00022998,2]
[311633481,1705273846679,-669.0,0.00022999,2]
[311633483,1705273846689,-691.24469272,0.00022999,2]
[311633485,1705273846700,-837.85512583,0.00022999,2]
[311633486,1705273846750,-9410.46485975,0.00022999,2]
[311633695,1705273879962,575.1,0.00021891,2]
[311633699,1705273974364,150.0,0.00021999,2]
[311633700,1705273993879,176.17,0.00021765,2]
[311633701,1705274002528,256.63,0.00021749,2]
[311633702,1705274003794,256.63,0.00021886,2]
[311633703,1705274005063,256.63,0.00022023,2]
[311633704,1705274036072,559.6,0.00019827,2]
[311633705,1705274036331,559.6,0.00022091,2]
[311633706,1705274060067,250.0,0.00021746,2]
[311633707,1705274105270,156.08,0.00021969,2]
[311633708,1705274105956,156.57,0.00021752,2]
[311633709,1705274164392,205.0,0.00021909,2]
[311633710,1705274301442,200.0,0.00021704,2]
[311633711,1705274341804,747.5,0.00021705,2]
[311633712,1705274394614,154.13,0.00021792,2]
[311633713,1705274408929,539.92,0.00021585,2]
[311633714,1705274520340,503.64,0.00019629,2]
[311633715,1705274521400,503.64,0.00021893,2]
[311633716,1705274527259,153.49,0.00021743,2]
[311633717,1705274540793,157.95,0.00021528,2]
[311633718,1705274610921,352.1,0.00021765,2]
[311633719,1705274616344,256.63,0.00021749,2]
[311633720,1705274618350,256.63,0.00021886,2]
[311633721,1705274618885,256.63,0.00022023,2]
[311633722,1705274625245,250.0,0.00021765,2]
[311633723,1705274626521,250.0,0.00022039,2]
[311633724,1705274674810,150.0,0.00021765,2]
[311633725,1705274791195,697.66,0.00021535,2]
[311633726,1705274847103,-160.54104259,0.00022131,2]
[311633727,1705274847124,-515.20412514,0.00022132,2]
[311633728,1705274847144,-276.30279996,0.00022142,2]
[311633729,1705274847165,-213.73643438,0.00022142,2]
[311633730,1705274855085,568.06,0.00021572,2]
[311633731,1705274960277,453.27,0.00019627,2]
[311633732,1705274960488,453.27,0.00021891,2]
[311633741,1705275031835,-266.90586008,0.00022106,2]
[311633742,1705275031845,-478.40472767,0.00022109,2]
[311633743,1705275031857,-368.88617233,0.00022109,2]
[311633744,1705275031867,-62.56636558,0.00022142,2]
[311633746,1705275031876,-276.30279996,0.00022142,2]